[Event "Late-Titled-Tuesday-Blitz-March-05-2024"]
[Site "Chess.com"]
[Date "2024.03.05"]
[Round "11"]
[White "dosto07"]
[Black "chess94cu"]
[Result "0-1"]
[WhiteElo "2511"]
[BlackElo "2639"]
[TimeControl "180+1"]
[EndTime "16:03:17 PST"]
[Termination "chess94cu won by resignation"]

1. e4 {[%clk 0:03:00.9]} 1... c5 {[%clk 0:02:55]} 2. Nf3 {[%clk 0:03:01.1]} 2...
d6 {[%clk 0:02:55.3]} 3. Bb5+ {[%clk 0:03:01.3]} 3... Bd7 {[%clk 0:02:53.4]} 4.
Bxd7+ {[%clk 0:03:01.2]} 4... Qxd7 {[%clk 0:02:54.3]} 5. O-O {[%clk 0:03:01.4]}
5... Nc6 {[%clk 0:02:53.1]} 6. c3 {[%clk 0:03:00.4]} 6... Nf6 {[%clk 0:02:51.8]}
7. Qe2 {[%clk 0:03:00.6]} 7... e6 {[%clk 0:02:48.8]} 8. d4 {[%clk 0:03:00.6]}
8... cxd4 {[%clk 0:02:48.6]} 9. cxd4 {[%clk 0:03:01.5]} 9... d5 {[%clk
0:02:49.3]} 10. e5 {[%clk 0:03:01.8]} 10... Ne4 {[%clk 0:02:50]} 11. Nbd2 {[%clk
0:03:02.4]} 11... Nxd2 {[%clk 0:02:48.6]} 12. Bxd2 {[%clk 0:03:03.3]} 12... Be7
{[%clk 0:02:48.9]} 13. g3 {[%clk 0:03:03.4]} 13... O-O {[%clk 0:02:48.9]} 14.
Kg2 {[%clk 0:03:04.1]} 14... Rfc8 {[%clk 0:02:49]} 15. h4 {[%clk 0:03:03.5]}
15... Bb4 {[%clk 0:02:41.3]} 16. Bf4 {[%clk 0:02:58.9]} 16... Ne7 {[%clk
0:02:36.4]} 17. Qd3 {[%clk 0:02:44.6]} 17... h6 {[%clk 0:02:27.8]} 18. g4 {[%clk
0:02:42.2]} 18... a6 {[%clk 0:02:24.9]} 19. h5 {[%clk 0:02:17.4]} 19... Qb5
{[%clk 0:02:20.3]} 20. Qxb5 {[%clk 0:02:15.3]} 20... axb5 {[%clk 0:02:19.8]} 21.
a3 {[%clk 0:02:12.6]} 21... Ba5 {[%clk 0:02:20]} 22. Rfc1 {[%clk 0:02:11.3]}
22... Rc4 {[%clk 0:02:13.8]} 23. b3 {[%clk 0:02:01.8]} 23... Rcc8 {[%clk
0:02:10.8]} 24. Kf1 {[%clk 0:01:55.3]} 24... Bb6 {[%clk 0:02:10.7]} 25. Ke2
{[%clk 0:01:44.9]} 25... Nc6 {[%clk 0:02:11.1]} 26. Be3 {[%clk 0:01:34.9]} 26...
Ra6 {[%clk 0:02:03.1]} 27. Ne1 {[%clk 0:01:07.4]} 27... Rca8 {[%clk 0:01:29.3]}
28. Nc2 {[%clk 0:01:07.4]} 28... Bd8 {[%clk 0:01:29.9]} 29. Rab1 {[%clk
0:00:55.4]} 29... Be7 {[%clk 0:01:28.6]} 30. a4 {[%clk 0:00:55.6]} 30... bxa4
{[%clk 0:00:45.7]} 31. bxa4 {[%clk 0:00:56.5]} 31... Rxa4 {[%clk 0:00:46.4]} 32.
Rxb7 {[%clk 0:00:55.9]} 32... Rc4 {[%clk 0:00:47.1]} 33. Kd1 {[%clk 0:00:49]}
33... Ra2 {[%clk 0:00:41]} 34. Rc7 {[%clk 0:00:42.2]} 34... Bg5 {[%clk
0:00:38.8]} 35. Rc8+ {[%clk 0:00:35.4]} 35... Kh7 {[%clk 0:00:38.3]} 36. f4
{[%clk 0:00:31.3]} 36... Bh4 {[%clk 0:00:34.5]} 37. Rf8 {[%clk 0:00:20.5]} 37...
f6 {[%clk 0:00:29.8]} 38. Rf7 {[%clk 0:00:15.3]} 38... fxe5 {[%clk 0:00:29.8]}
39. fxe5 {[%clk 0:00:14]} 39... Bg5 {[%clk 0:00:29.8]} 40. Bxg5 {[%clk 0:00:14]}
40... hxg5 {[%clk 0:00:30.7]} 41. Rd7 {[%clk 0:00:09.7]} 41... Nxd4 {[%clk
0:00:26.6]} 42. Nxd4 {[%clk 0:00:07.8]} 42... Rxd4+ {[%clk 0:00:27.5]} 43. Ke1
{[%clk 0:00:07.3]} 43... Rxg4 {[%clk 0:00:28]} 44. Kf1 {[%clk 0:00:04.9]} 44...
Rh4 {[%clk 0:00:27.5]} 45. Kg1 {[%clk 0:00:04.6]} 45... Rxh5 {[%clk 0:00:26.9]}
46. Rcc7 {[%clk 0:00:04.5]} 46... Kg6 {[%clk 0:00:27.5]} 47. Rxg7+ {[%clk
0:00:04]} 47... Kf5 {[%clk 0:00:28.2]} 48. Rgf7+ {[%clk 0:00:04]} 48... Kxe5
{[%clk 0:00:28]} 49. Rf2 {[%clk 0:00:04.3]} 49... Rxf2 {[%clk 0:00:26.9]} 50.
Kxf2 {[%clk 0:00:04.8]} 50... Rh2+ {[%clk 0:00:27]} 51. Kg3 {[%clk 0:00:05.3]}
51... Ra2 {[%clk 0:00:27.4]} 52. Kg4 {[%clk 0:00:05]} 52... d4 {[%clk
0:00:26.1]} 0-1

[Event "Late-Titled-Tuesday-Blitz-March-05-2024"]
[Site "Chess.com"]
[Date "2024.03.05"]
[Round "11"]
[White "Penafiel-Josselyne02"]
[Black "Roedor"]
[Result "0-1"]
[WhiteElo "2060"]
[BlackElo "2298"]
[TimeControl "180+1"]
[EndTime "16:03:19 PST"]
[Termination "Roedor won by resignation"]

1. d4 {[%clk 0:03:00.9]} 1... Nf6 {[%clk 0:02:56.6]} 2. c4 {[%clk 0:02:59.6]}
2... g6 {[%clk 0:02:55.4]} 3. Nc3 {[%clk 0:02:59.1]} 3... Bg7 {[%clk 0:02:55.9]}
4. e4 {[%clk 0:02:59.1]} 4... d6 {[%clk 0:02:56.3]} 5. Be2 {[%clk 0:02:59.5]}
5... O-O {[%clk 0:02:56.8]} 6. Be3 {[%clk 0:02:59.9]} 6... e5 {[%clk 0:02:55.6]}
7. d5 {[%clk 0:03:00]} 7... Na6 {[%clk 0:02:56.2]} 8. g4 {[%clk 0:03:00]} 8...
Nc5 {[%clk 0:02:56.4]} 9. f3 {[%clk 0:03:00.1]} 9... c6 {[%clk 0:02:56.8]} 10.
h4 {[%clk 0:02:56.7]} 10... cxd5 {[%clk 0:02:57]} 11. Nxd5 {[%clk 0:02:49.2]}
11... Nxd5 {[%clk 0:02:56.7]} 12. Qxd5 {[%clk 0:02:49]} 12... Be6 {[%clk
0:02:55.6]} 13. Qd2 {[%clk 0:02:47.7]} 13... f5 {[%clk 0:02:44.6]} 14. gxf5
{[%clk 0:02:20.1]} 14... gxf5 {[%clk 0:02:45.5]} 15. Rd1 {[%clk 0:02:09]} 15...
fxe4 {[%clk 0:02:44.3]} 16. Qxd6 {[%clk 0:02:08]} 16... Nd3+ {[%clk 0:02:26.3]}
17. Rxd3 {[%clk 0:02:02]} 17... exd3 {[%clk 0:02:26.6]} 18. Qxe6+ {[%clk
0:02:02.2]} 18... Kh8 {[%clk 0:02:26.9]} 19. Bd1 {[%clk 0:01:55.6]} 19... e4
{[%clk 0:02:23.9]} 20. Rh2 {[%clk 0:01:33.6]} 20... Re8 {[%clk 0:02:18.8]} 21.
Qg4 {[%clk 0:01:22.2]} 21... exf3 {[%clk 0:02:07.5]} 22. Kf2 {[%clk 0:01:21.3]}
22... Rxe3 {[%clk 0:01:35.2]} 23. Kxe3 {[%clk 0:01:16.8]} 23... Qb6+ {[%clk
0:01:35.3]} 24. Kxf3 {[%clk 0:01:11.1]} 24... Rf8+ {[%clk 0:01:33.4]} 25. Kg2
{[%clk 0:01:11]} 25... Be5 {[%clk 0:01:19.6]} 26. Rh3 {[%clk 0:00:47.3]} 26...
Rg8 {[%clk 0:00:59.6]} 27. Qxg8+ {[%clk 0:00:43]} 27... Kxg8 {[%clk 0:01:00.5]}
28. Rxd3 {[%clk 0:00:38.5]} 28... Qxb2+ {[%clk 0:01:00.4]} 29. Kf1 {[%clk
0:00:37.3]} 29... Qxa2 {[%clk 0:00:49]} 30. c5 {[%clk 0:00:33.6]} 30... Kf8
{[%clk 0:00:40.7]} 31. Rf3+ {[%clk 0:00:24.7]} 31... Ke7 {[%clk 0:00:40]} 32.
Bb3 {[%clk 0:00:16.8]} 32... Qb1+ {[%clk 0:00:40]} 33. Kg2 {[%clk 0:00:13.7]}
33... Qg6+ {[%clk 0:00:35.5]} 34. Kf1 {[%clk 0:00:13.5]} 34... Bd4 {[%clk
0:00:25.3]} 35. Ne2 {[%clk 0:00:12.8]} 35... Bxc5 {[%clk 0:00:24.4]} 36. Nf4
{[%clk 0:00:12.5]} 36... Qb1+ {[%clk 0:00:18.4]} 37. Kg2 {[%clk 0:00:12.3]}
37... Qg1+ {[%clk 0:00:17.1]} 38. Kh3 {[%clk 0:00:12.2]} 38... Bd6 {[%clk
0:00:15.1]} 39. Nd5+ {[%clk 0:00:06.5]} 39... Kd7 {[%clk 0:00:15.5]} 40. Rf7+
{[%clk 0:00:05.1]} 40... Kc6 {[%clk 0:00:15.9]} 41. Ne7+ {[%clk 0:00:03.4]}
41... Bxe7 {[%clk 0:00:15.9]} 42. Rxe7 {[%clk 0:00:03.9]} 42... Qh1+ {[%clk
0:00:14.1]} 43. Kg4 {[%clk 0:00:03.8]} 43... Qg2+ {[%clk 0:00:13.5]} 44. Kh5
{[%clk 0:00:03.8]} 44... Qf3+ {[%clk 0:00:13.7]} 45. Kh6 {[%clk 0:00:04]} 45...
Qxb3 {[%clk 0:00:14.3]} 46. Rxh7 {[%clk 0:00:04.2]} 46... Qg3 {[%clk 0:00:13.3]}
47. Rg7 {[%clk 0:00:04.1]} 47... Qxh4+ {[%clk 0:00:13]} 48. Kg6 {[%clk
0:00:04.8]} 48... Qg3+ {[%clk 0:00:13.5]} 49. Kf7 {[%clk 0:00:05.7]} 49... Qxg7+
{[%clk 0:00:14.2]} 50. Kxg7 {[%clk 0:00:06]} 50... a5 {[%clk 0:00:15.1]} 51. Kf8
{[%clk 0:00:06.6]} 51... a4 {[%clk 0:00:16]} 52. Kf7 {[%clk 0:00:07.4]} 52... a3
{[%clk 0:00:16.9]} 0-1

[Event "Late-Titled-Tuesday-Blitz-March-05-2024"]
[Site "Chess.com"]
[Date "2024.03.05"]
[Round "11"]
[White "manitodeplomo"]
[Black "anasta10"]
[Result "1-0"]
[WhiteElo "2711"]
[BlackElo "2527"]
[TimeControl "180+1"]
[EndTime "16:03:20 PST"]
[Termination "manitodeplomo won by resignation"]

1. d4 {[%clk 0:02:59.5]} 1... Nf6 {[%clk 0:02:59.8]} 2. c4 {[%clk 0:02:58.7]}
2... c5 {[%clk 0:03:00]} 3. d5 {[%clk 0:02:58.6]} 3... d6 {[%clk 0:03:00.4]} 4.
Nc3 {[%clk 0:02:58.1]} 4... g6 {[%clk 0:03:01]} 5. e4 {[%clk 0:02:58.6]} 5...
Bg7 {[%clk 0:03:01.6]} 6. h3 {[%clk 0:02:59.2]} 6... O-O {[%clk 0:03:02.1]} 7.
Nf3 {[%clk 0:02:59.9]} 7... e6 {[%clk 0:03:02.8]} 8. Bd3 {[%clk 0:03:00.3]} 8...
exd5 {[%clk 0:03:03.4]} 9. cxd5 {[%clk 0:03:01.2]} 9... b5 {[%clk 0:03:01.3]}
10. Nxb5 {[%clk 0:03:01]} 10... Nxe4 {[%clk 0:02:50.8]} 11. Bxe4 {[%clk
0:03:01.9]} 11... Re8 {[%clk 0:02:51.1]} 12. O-O {[%clk 0:03:00.6]} 12... Rxe4
{[%clk 0:02:49.8]} 13. Ng5 {[%clk 0:03:00.5]} 13... Re8 {[%clk 0:02:35.4]} 14.
Qf3 {[%clk 0:02:59]} 14... f5 {[%clk 0:02:29.8]} 15. Ne6 {[%clk 0:02:49.9]}
15... Bxe6 {[%clk 0:01:37.6]} 16. dxe6 {[%clk 0:02:50.8]} 16... Na6 {[%clk
0:01:34.6]} 17. Bf4 {[%clk 0:02:42.1]} 17... d5 {[%clk 0:01:22]} 18. Nd6 {[%clk
0:02:39]} 18... Rxe6 {[%clk 0:01:07.8]} 19. Qxd5 {[%clk 0:02:39.3]} 19... Nc7
{[%clk 0:01:08.6]} 20. Qc4 {[%clk 0:02:20.8]} 20... Qd7 {[%clk 0:00:56.6]} 21.
Rad1 {[%clk 0:02:13.4]} 21... Rd8 {[%clk 0:00:36.3]} 22. Rd2 {[%clk 0:01:09]}
22... Qe7 {[%clk 0:00:10.1]} 23. Qxc5 {[%clk 0:00:56.9]} 23... Kh8 {[%clk
0:00:09.6]} 24. Rfd1 {[%clk 0:00:47.1]} 24... Rf8 {[%clk 0:00:05.4]} 25. Qc4
{[%clk 0:00:41.6]} 25... Na8 {[%clk 0:00:04.1]} 26. Be3 {[%clk 0:00:23.5]} 26...
Nb6 {[%clk 0:00:03.8]} 27. Qb3 {[%clk 0:00:23.2]} 27... f4 {[%clk 0:00:03]} 28.
Bc5 {[%clk 0:00:23.2]} 28... Re1+ {[%clk 0:00:03.3]} 29. Kh2 {[%clk 0:00:22.5]}
29... Rxd1 {[%clk 0:00:03.7]} 30. Rxd1 {[%clk 0:00:23.4]} 30... f3 {[%clk
0:00:04]} 31. g3 {[%clk 0:00:22.8]} 31... Qe5 {[%clk 0:00:03.9]} 32. Nf7+ {[%clk
0:00:21.7]} 32... Rxf7 {[%clk 0:00:04]} 33. Qxf7 {[%clk 0:00:22.6]} 33... h5
{[%clk 0:00:04.7]} 34. Qxg6 {[%clk 0:00:21.2]} 34... Qxc5 {[%clk 0:00:04.6]} 35.
Rd8+ {[%clk 0:00:17.9]} 35... Bf8 {[%clk 0:00:05]} 36. Qf6+ {[%clk 0:00:12.9]}
36... Kg8 {[%clk 0:00:05.3]} 37. Qxf3 {[%clk 0:00:12.8]} 37... Qg5 {[%clk
0:00:02.9]} 38. Rd4 {[%clk 0:00:10.6]} 38... Qg6 {[%clk 0:00:02.3]} 39. Rh4
{[%clk 0:00:10.6]} 39... Bg7 {[%clk 0:00:02.5]} 40. Qxh5 {[%clk 0:00:10.3]}
40... Qxh5 {[%clk 0:00:01.6]} 41. Rxh5 {[%clk 0:00:11.2]} 41... Bxb2 {[%clk
0:00:01.9]} 42. Ra5 {[%clk 0:00:11.8]} 42... Bd4 {[%clk 0:00:01.9]} 43. Rxa7
{[%clk 0:00:11.1]} 43... Bxf2 {[%clk 0:00:02.6]} 44. Rb7 {[%clk 0:00:11.4]}
44... Bc5 {[%clk 0:00:03.1]} 45. h4 {[%clk 0:00:11.5]} 45... Kf8 {[%clk
0:00:03.1]} 46. Kh3 {[%clk 0:00:11.8]} 46... Nd5 {[%clk 0:00:01.7]} 47. Rb5
{[%clk 0:00:10.4]} 1-0

[Event "Late-Titled-Tuesday-Blitz-March-05-2024"]
[Site "Chess.com"]
[Date "2024.03.05"]
[Round "11"]
[White "Perecke"]
[Black "sergiochess83"]
[Result "1-0"]
[WhiteElo "2596"]
[BlackElo "2835"]
[TimeControl "180+1"]
[EndTime "16:03:22 PST"]
[Termination "Perecke won by resignation"]

1. e4 {[%clk 0:03:00.9]} 1... e6 {[%clk 0:02:51.9]} 2. d4 {[%clk 0:03:00.6]}
2... d5 {[%clk 0:02:49.5]} 3. Nc3 {[%clk 0:03:00.8]} 3... Nf6 {[%clk 0:02:49]}
4. e5 {[%clk 0:03:00.7]} 4... Nfd7 {[%clk 0:02:48.9]} 5. Nce2 {[%clk 0:03:01.1]}
5... c5 {[%clk 0:02:47.8]} 6. c3 {[%clk 0:03:01.1]} 6... Nc6 {[%clk 0:02:48.4]}
7. f4 {[%clk 0:03:01.2]} 7... b5 {[%clk 0:02:48.8]} 8. Nf3 {[%clk 0:03:01.1]}
8... a5 {[%clk 0:02:49.1]} 9. f5 {[%clk 0:03:01.2]} 9... exf5 {[%clk 0:02:39.6]}
10. Nf4 {[%clk 0:03:01.4]} 10... Nb6 {[%clk 0:02:21.2]} 11. Bxb5 {[%clk
0:02:59.1]} 11... Bd7 {[%clk 0:02:21.5]} 12. e6 {[%clk 0:02:52.3]} 12... fxe6
{[%clk 0:02:20]} 13. Bxc6 {[%clk 0:02:42.1]} 13... Bxc6 {[%clk 0:02:18.8]} 14.
Ne5 {[%clk 0:02:42.5]} 14... Qc7 {[%clk 0:01:42]} 15. Qh5+ {[%clk 0:02:33.8]}
15... g6 {[%clk 0:01:42.3]} 16. Nfxg6 {[%clk 0:02:31.9]} 16... hxg6 {[%clk
0:01:42.7]} 17. Qxh8 {[%clk 0:02:00.8]} 17... O-O-O {[%clk 0:01:42.6]} 18. Qf6
{[%clk 0:01:54.9]} 18... Bb5 {[%clk 0:01:16.5]} 19. Bf4 {[%clk 0:01:39.9]} 19...
Kb7 {[%clk 0:00:59.3]} 20. Nxg6 {[%clk 0:01:03.2]} 20... Bd6 {[%clk 0:00:54.6]}
21. Bxd6 {[%clk 0:01:01.8]} 21... Rxd6 {[%clk 0:00:53]} 22. Qe7 {[%clk
0:00:56.3]} 22... Rd7 {[%clk 0:00:38.1]} 23. Qxc5 {[%clk 0:00:53.7]} 23... Rg7
{[%clk 0:00:38.8]} 24. Qxb5 {[%clk 0:00:49.8]} 24... Rxg6 {[%clk 0:00:38.5]} 25.
g3 {[%clk 0:00:44.9]} 25... f4 {[%clk 0:00:38.2]} 26. O-O-O {[%clk 0:00:44.4]}
26... a4 {[%clk 0:00:34.1]} 27. Qc5 {[%clk 0:00:40.2]} 27... Qh7 {[%clk
0:00:22.8]} 28. Rdf1 {[%clk 0:00:25.2]} 28... Rf6 {[%clk 0:00:14]} 29. gxf4
{[%clk 0:00:20.4]} 29... Ka6 {[%clk 0:00:09.5]} 30. f5 {[%clk 0:00:10.3]} 30...
exf5 {[%clk 0:00:07.5]} 31. Rf4 {[%clk 0:00:08.8]} 31... Re6 {[%clk 0:00:07.7]}
32. Rhf1 {[%clk 0:00:08.5]} 32... Qxh2 {[%clk 0:00:06.8]} 33. R4f2 {[%clk
0:00:08.1]} 33... Qg3 {[%clk 0:00:05.6]} 34. Kb1 {[%clk 0:00:08]} 34... Qd3+
{[%clk 0:00:05.6]} 35. Ka1 {[%clk 0:00:06.8]} 35... Re2 {[%clk 0:00:04.1]} 36.
Rxe2 {[%clk 0:00:03.7]} 36... Qxe2 {[%clk 0:00:05]} 37. Rb1 {[%clk 0:00:03.4]}
37... f4 {[%clk 0:00:05.5]} 38. b3 {[%clk 0:00:01.4]} 38... a3 {[%clk
0:00:01.2]} 39. b4 {[%clk 0:00:02]} 39... Kb7 {[%clk 0:00:01.6]} 40. b5 {[%clk
0:00:02.6]} 40... Qd3 {[%clk 0:00:01.9]} 41. Qc6+ {[%clk 0:00:03.3]} 41... Ka7
{[%clk 0:00:02.1]} 42. Qc7+ {[%clk 0:00:03.5]} 42... Ka8 {[%clk 0:00:03]} 43.
Qc6+ {[%clk 0:00:03.9]} 43... Kb8 {[%clk 0:00:03.9]} 44. Rc1 {[%clk 0:00:03.9]}
44... Ka7 {[%clk 0:00:04.8]} 45. Qc7+ {[%clk 0:00:04.2]} 45... Ka8 {[%clk
0:00:05.3]} 46. Qxb6 {[%clk 0:00:05.1]} 46... Qxc3+ {[%clk 0:00:04.2]} 47. Rxc3
{[%clk 0:00:04.5]} 47... f3 {[%clk 0:00:05.1]} 48. Qc6+ {[%clk 0:00:04.8]} 1-0

[Event "Late-Titled-Tuesday-Blitz-March-05-2024"]
[Site "Chess.com"]
[Date "2024.03.05"]
[Round "11"]
[White "giomar27"]
[Black "IMRosen"]
[Result "1-0"]
[WhiteElo "2461"]
[BlackElo "2650"]
[TimeControl "180+1"]
[EndTime "16:03:23 PST"]
[Termination "giomar27 won on time"]

1. Nc3 {[%clk 0:03:00.9]} 1... d5 {[%clk 0:02:56.4]} 2. d4 {[%clk 0:03:00.9]}
2... Nf6 {[%clk 0:02:56.4]} 3. Bf4 {[%clk 0:03:01.1]} 3... c5 {[%clk 0:02:57.1]}
4. e4 {[%clk 0:03:01]} 4... Nxe4 {[%clk 0:02:56.9]} 5. Nxe4 {[%clk 0:02:59.8]}
5... dxe4 {[%clk 0:02:57.8]} 6. dxc5 {[%clk 0:02:57.7]} 6... Nd7 {[%clk
0:02:58.2]} 7. b4 {[%clk 0:02:52.1]} 7... e5 {[%clk 0:02:56.1]} 8. Bg3 {[%clk
0:02:51]} 8... Be7 {[%clk 0:02:56.2]} 9. Bc4 {[%clk 0:02:48.4]} 9... O-O {[%clk
0:02:56.3]} 10. f3 {[%clk 0:02:39.2]} 10... a5 {[%clk 0:02:44.7]} 11. c3 {[%clk
0:02:38.9]} 11... e3 {[%clk 0:01:53.2]} 12. Ne2 {[%clk 0:02:35.6]} 12... Kh8
{[%clk 0:01:49.4]} 13. O-O {[%clk 0:02:09.2]} 13... f5 {[%clk 0:01:49.5]} 14. f4
{[%clk 0:02:03.4]} 14... g5 {[%clk 0:01:42]} 15. fxe5 {[%clk 0:01:55.8]} 15...
f4 {[%clk 0:01:42.1]} 16. e6 {[%clk 0:01:55.6]} 16... Nf6 {[%clk 0:01:19.9]} 17.
Qxd8 {[%clk 0:01:49.3]} 17... Rxd8 {[%clk 0:01:20]} 18. Nxf4 {[%clk 0:01:44.5]}
18... gxf4 {[%clk 0:01:16.5]} 19. Bxf4 {[%clk 0:01:45.4]} 19... axb4 {[%clk
0:01:07.7]} 20. Be5 {[%clk 0:01:41]} 20... Kg7 {[%clk 0:00:48.1]} 21. cxb4
{[%clk 0:01:40.3]} 21... e2 {[%clk 0:00:35.2]} 22. Rfe1 {[%clk 0:01:14.5]} 22...
Rd2 {[%clk 0:00:35.2]} 23. Bb3 {[%clk 0:00:56.1]} 23... Ra6 {[%clk 0:00:31.5]}
24. Bc3 {[%clk 0:00:55.5]} 24... Rd3 {[%clk 0:00:21.1]} 25. Rac1 {[%clk
0:00:46.6]} 25... Bxe6 {[%clk 0:00:14.9]} 26. Rxe2 {[%clk 0:00:46.7]} 26... Bxb3
{[%clk 0:00:15.5]} 27. Rxe7+ {[%clk 0:00:41.4]} 27... Bf7 {[%clk 0:00:15.3]} 28.
Rxb7 {[%clk 0:00:35.2]} 28... Rxa2 {[%clk 0:00:05.5]} 29. Bxf6+ {[%clk
0:00:34.7]} 29... Kxf6 {[%clk 0:00:03.3]} 30. Rf1+ {[%clk 0:00:35]} 30... Kg6
{[%clk 0:00:03]} 31. Rbxf7 {[%clk 0:00:35]} 31... Rdd2 {[%clk 0:00:02.2]} 32.
R7f2 {[%clk 0:00:33.2]} 32... Rdb2 {[%clk 0:00:01.8]} 33. Rxb2 {[%clk
0:00:30.7]} 33... Rxb2 {[%clk 0:00:02.7]} 34. Rf4 {[%clk 0:00:30]} 34... Rc2
{[%clk 0:00:02.7]} 35. h4 {[%clk 0:00:26.7]} 35... h6 {[%clk 0:00:02.5]} 36. Kh2
{[%clk 0:00:26.7]} 36... h5 {[%clk 0:00:02.7]} 37. Kg3 {[%clk 0:00:26.4]} 37...
Rc3+ {[%clk 0:00:02.8]} 38. Kf2 {[%clk 0:00:26.4]} 38... Rc2+ {[%clk 0:00:03.5]}
39. Kf3 {[%clk 0:00:26.4]} 39... Rc3+ {[%clk 0:00:04]} 40. Ke4 {[%clk
0:00:25.3]} 40... Rc2 {[%clk 0:00:04.2]} 41. Kd5 {[%clk 0:00:22.5]} 41... Rxg2
{[%clk 0:00:03.6]} 42. Rc4 {[%clk 0:00:22.7]} 42... Rd2+ {[%clk 0:00:03.4]} 43.
Kc6 {[%clk 0:00:22.7]} 43... Kf5 {[%clk 0:00:03.2]} 44. Kb6 {[%clk 0:00:22.7]}
44... Rd8 {[%clk 0:00:02.8]} 45. c6 {[%clk 0:00:23.1]} 45... Kg6 {[%clk
0:00:03.2]} 46. c7 {[%clk 0:00:23.5]} 46... Rd7 {[%clk 0:00:02]} 47. c8=N {[%clk
0:00:21.8]} 47... Rf7 {[%clk 0:00:02]} 48. Nd6 {[%clk 0:00:21.8]} 48... Rf6
{[%clk 0:00:02.1]} 49. Kc6 {[%clk 0:00:22.3]} 49... Kg7 {[%clk 0:00:01.2]} 50.
b5 {[%clk 0:00:22.8]} 50... Rf8 {[%clk 0:00:01.5]} 51. b6 {[%clk 0:00:23.4]}
51... Kh7 {[%clk 0:00:01.9]} 52. b7 {[%clk 0:00:24]} 52... Rg8 {[%clk
0:00:02.1]} 53. Nc8 {[%clk 0:00:24.6]} 53... Rg6+ {[%clk 0:00:02.2]} 54. Kb5
{[%clk 0:00:24.7]} 54... Rg1 {[%clk 0:00:01.8]} 55. b8=Q {[%clk 0:00:23.5]}
55... Rg6 {[%clk 0:00:01.8]} 56. Qc7+ {[%clk 0:00:23.3]} 56... Kh6 {[%clk
0:00:01.6]} 57. Rc6 {[%clk 0:00:22.2]} 1-0

[Event "Late-Titled-Tuesday-Blitz-March-05-2024"]
[Site "Chess.com"]
[Date "2024.03.05"]
[Round "11"]
[White "Alphafischer2019"]
[Black "karinachess1"]
[Result "1-0"]
[WhiteElo "2750"]
[BlackElo "2605"]
[TimeControl "180+1"]
[EndTime "16:03:24 PST"]
[Termination "Alphafischer2019 won by resignation"]

1. Nf3 {[%clk 0:02:59.9]} 1... Nf6 {[%clk 0:02:59.7]} 2. b3 {[%clk 0:02:58.7]}
2... g6 {[%clk 0:02:56.3]} 3. Bb2 {[%clk 0:02:59.6]} 3... Bg7 {[%clk 0:02:56.5]}
4. g3 {[%clk 0:02:59.8]} 4... O-O {[%clk 0:02:53.6]} 5. Bg2 {[%clk 0:02:59.7]}
5... d6 {[%clk 0:02:50]} 6. O-O {[%clk 0:02:58.5]} 6... e5 {[%clk 0:02:49.2]} 7.
c4 {[%clk 0:02:59.2]} 7... Nc6 {[%clk 0:02:45.3]} 8. d3 {[%clk 0:02:59.8]} 8...
h6 {[%clk 0:02:44.9]} 9. Nc3 {[%clk 0:02:59.8]} 9... Be6 {[%clk 0:02:45.1]} 10.
a3 {[%clk 0:02:56.6]} 10... a5 {[%clk 0:02:45]} 11. Nd2 {[%clk 0:02:56.1]} 11...
Qd7 {[%clk 0:02:44.5]} 12. Nd5 {[%clk 0:02:55.6]} 12... Ne7 {[%clk 0:02:36.6]}
13. Nxf6+ {[%clk 0:02:51.2]} 13... Bxf6 {[%clk 0:02:36.2]} 14. Bxb7 {[%clk
0:02:51.9]} 14... Rab8 {[%clk 0:02:26.6]} 15. Bg2 {[%clk 0:02:52]} 15... Bg7
{[%clk 0:02:26.3]} 16. Bc3 {[%clk 0:02:49.9]} 16... Nc6 {[%clk 0:02:22.6]} 17.
Rb1 {[%clk 0:02:50.1]} 17... d5 {[%clk 0:01:58.8]} 18. cxd5 {[%clk 0:02:38.8]}
18... Bxd5 {[%clk 0:01:59.7]} 19. Bxd5 {[%clk 0:02:29.7]} 19... Qxd5 {[%clk
0:02:00.6]} 20. Qc2 {[%clk 0:02:30]} 20... Rb7 {[%clk 0:01:49.1]} 21. Ba1 {[%clk
0:02:30.1]} 21... Nd4 {[%clk 0:01:41.6]} 22. Bxd4 {[%clk 0:02:28.3]} 22... exd4
{[%clk 0:01:42.5]} 23. Qc4 {[%clk 0:02:19.9]} 23... Qd6 {[%clk 0:01:34.3]} 24.
Ra1 {[%clk 0:02:02.5]} 24... Re8 {[%clk 0:01:14]} 25. Rfe1 {[%clk 0:01:57.9]}
25... Qb6 {[%clk 0:01:10.9]} 26. Rac1 {[%clk 0:01:52.9]} 26... Bf8 {[%clk
0:01:04]} 27. Qd5 {[%clk 0:01:34.1]} 27... Rbb8 {[%clk 0:00:45]} 28. Rc6 {[%clk
0:01:32]} 28... Qb7 {[%clk 0:00:45.4]} 29. Rxg6+ {[%clk 0:01:28.7]} 29... Bg7
{[%clk 0:00:45.2]} 30. Qxb7 {[%clk 0:01:11.1]} 30... Rxb7 {[%clk 0:00:46.1]} 31.
Ra6 {[%clk 0:01:10.6]} 31... Rb5 {[%clk 0:00:43.7]} 32. Kf1 {[%clk 0:01:05.4]}
32... Bf8 {[%clk 0:00:42.5]} 33. a4 {[%clk 0:00:58.2]} 33... Rb7 {[%clk
0:00:42.4]} 34. Ne4 {[%clk 0:00:56.1]} 34... Kg7 {[%clk 0:00:39.6]} 35. Rc1
{[%clk 0:00:52.7]} 35... Rxb3 {[%clk 0:00:38.5]} 36. Rxa5 {[%clk 0:00:51.2]}
36... Re7 {[%clk 0:00:29.1]} 37. Rf5 {[%clk 0:00:41.2]} 37... Ra3 {[%clk
0:00:27.5]} 38. a5 {[%clk 0:00:40.4]} 38... Ra2 {[%clk 0:00:24.1]} 39. h4 {[%clk
0:00:39.5]} 39... Rd7 {[%clk 0:00:22.5]} 40. Rb5 {[%clk 0:00:34.4]} 40... Ba3
{[%clk 0:00:19.9]} 41. Rc6 {[%clk 0:00:30.7]} 41... Re7 {[%clk 0:00:13.5]} 42.
f4 {[%clk 0:00:29.9]} 42... Bd6 {[%clk 0:00:11.5]} 43. Kf2 {[%clk 0:00:29.6]}
43... Kg6 {[%clk 0:00:07.3]} 44. f5+ {[%clk 0:00:29.4]} 44... Kh7 {[%clk
0:00:07.1]} 45. g4 {[%clk 0:00:28.7]} 45... Ra1 {[%clk 0:00:05.6]} 46. Rb7
{[%clk 0:00:25.7]} 46... Re5 {[%clk 0:00:03.8]} 47. a6 {[%clk 0:00:20.3]} 47...
Ra2 {[%clk 0:00:03.6]} 48. Kf3 {[%clk 0:00:19.9]} 48... Rea5 {[%clk 0:00:03.9]}
49. Nxd6 {[%clk 0:00:20]} 49... cxd6 {[%clk 0:00:04.3]} 50. Rxf7+ {[%clk
0:00:20.1]} 50... Kg8 {[%clk 0:00:04.8]} 51. Rb7 {[%clk 0:00:20.8]} 51... Rc5
{[%clk 0:00:03.8]} 52. Rxc5 {[%clk 0:00:20.6]} 52... dxc5 {[%clk 0:00:04.7]} 53.
a7 {[%clk 0:00:21.4]} 53... Kf8 {[%clk 0:00:04.2]} 54. Rb8+ {[%clk 0:00:21.9]}
1-0